fUST/lending_fUST_20240711
["ID","MTS","AMOUNT","RATE_DAILY","PERIOD"]
[331699290,1720660239490,-156.37674716,0.00027194,2]
[331699291,1720660239500,-202.59375792,0.00027194,2]
[331699292,1720660239510,-357.355499,0.00027195,2]
[331699293,1720660239519,-13959.59905729,0.00027217,2]
[331699294,1720660239529,-500.0,0.00027397,2]
[331699295,1720660239539,-500.0,0.00027397,2]
[331699296,1720660239548,-500.0,0.00027397,2]
[331699297,1720660239559,-500.0,0.00027397,2]
[331699298,1720660239568,-500.0,0.00027397,2]
[331699299,1720660239579,-500.0,0.00027397,2]
[331699300,1720660239589,-500.0,0.00027397,2]
[331699301,1720660239599,-500.0,0.00027397,2]
[331699302,1720660239610,-500.0,0.00027397,2]
[331699303,1720660239620,-500.0,0.00027397,2]
[331699304,1720660239629,-500.0,0.00027397,2]
[331699305,1720660239639,-500.0,0.00027397,2]
[331699306,1720660239649,-572.81896294,0.00027397,2]
[331699307,1720660239659,-500.0,0.00027397,2]
[331699308,1720660239669,-500.0,0.00027397,2]
[331699309,1720660239679,-500.0,0.00027397,2]
[331699310,1720660239688,-500.0,0.00027397,2]
[331699311,1720660239699,-500.0,0.00027397,2]
[331699312,1720660239709,-500.0,0.00027397,2]
[331699313,1720660239720,-500.0,0.00027397,2]
[331699314,1720660239730,-500.0,0.00027397,2]
[331699315,1720660239740,-198.88431547,0.00027397,2]
[331699316,1720660239750,-500.0,0.00027397,2]
[331699317,1720660239760,-500.0,0.00027397,2]
[331699318,1720660239770,-500.0,0.00027397,2]
[331699319,1720660239780,-500.0,0.00027397,2]
[331699320,1720660239790,-500.0,0.00027397,2]
[331699321,1720660239800,-500.0,0.00027397,2]
[331699322,1720660239810,-500.0,0.00027397,2]
[331699323,1720660239820,-500.0,0.00027397,2]
[331699324,1720660239829,-500.0,0.00027397,2]
[331699325,1720660239839,-500.0,0.00027397,2]
[331699326,1720660239848,-500.0,0.00027397,2]
[331699327,1720660239858,-500.0,0.00027397,2]
[331699328,1720660239867,-500.0,0.00027397,2]
[331699329,1720660239877,-500.0,0.00027397,2]
[331699330,1720660239887,-500.0,0.00027397,2]
[331699331,1720660239897,-500.0,0.00027397,2]
[331699332,1720660239908,-500.0,0.00027397,2]
[331699333,1720660239918,-500.0,0.00027397,2]
[331699334,1720660239928,-500.0,0.00027397,2]
[331699335,1720660239938,-500.0,0.00027397,2]
[331699336,1720660239948,-500.0,0.00027397,2]
[331699337,1720660239957,-500.0,0.00027397,2]
[331699338,1720660239967,-500.0,0.00027397,2]
[331699339,1720660239977,-500.0,0.00027397,2]
[331699340,1720660239986,-500.0,0.00027397,2]
[331699341,1720660239996,-500.0,0.00027397,2]
[331699342,1720660240006,-500.0,0.00027397,2]
[331699343,1720660240016,-500.0,0.00027397,2]
[331699344,1720660240026,-500.0,0.00027397,2]
[331699345,1720660240036,-500.0,0.00027397,2]
[331699346,1720660240046,-500.0,0.00027397,2]
[331699347,1720660240056,-500.0,0.00027397,2]
[331699348,1720660240066,-500.0,0.00027397,2]
[331699349,1720660240075,-500.0,0.00027397,2]
[331699350,1720660240086,-500.0,0.00027397,2]
[331699351,1720660240096,-500.0,0.00027397,2]
[331699352,1720660240106,-500.0,0.00027397,2]
[331699353,1720660240116,-500.0,0.00027397,2]
[331699354,1720660240126,-500.0,0.00027397,2]
[331699355,1720660240136,-500.0,0.00027397,2]
[331699356,1720660240146,-500.0,0.00027397,2]
[331699357,1720660240156,-500.0,0.00027397,2]
[331699358,1720660240166,-500.0,0.00027397,2]
[331699359,1720660240175,-1162.01028716,0.00027397,2]
[331699360,1720660240185,-1162.01028716,0.00027397,2]
[331699361,1720660240195,-1162.01028716,0.00027397,2]
[331699362,1720660240204,-1162.01028716,0.00027397,2]
[331699363,1720660240213,-1162.01028716,0.00027397,2]
[331699364,1720660240223,-1162.01028716,0.00027397,2]
[331699366,1720660240233,-1162.01028716,0.00027397,2]
[331699368,1720660240242,-1162.01028716,0.00027397,2]
[331699369,1720660240252,-1162.01028716,0.00027397,2]
[331699370,1720660240261,-1162.01028716,0.00027397,2]
[331699371,1720660240270,-1162.01028716,0.00027397,2]
[331699372,1720660240279,-1162.01028716,0.00027397,2]
[331699373,1720660240289,-1162.01028716,0.00027397,2]
[331699374,1720660240298,-1162.01028716,0.00027397,2]
[331699375,1720660240307,-1162.01028716,0.00027397,2]
[331699376,1720660240318,-1162.01028716,0.00027397,2]
[331699378,1720660240327,-1162.01028716,0.00027397,2]
[331699379,1720660240340,-1162.01028716,0.00027397,2]
[331699380,1720660240352,-1162.01028716,0.00027397,2]
[331699381,1720660240362,-1162.01028716,0.00027397,2]
[331699382,1720660240371,-1162.01028716,0.00027397,2]
[331699383,1720660240381,-1162.01028716,0.00027397,2]
[331699384,1720660240390,-1162.01028716,0.00027397,2]
[331699385,1720660240399,-1162.01028716,0.00027397,2]
[331699386,1720660240409,-1162.01028716,0.00027397,2]
[331699387,1720660240420,-1162.01028716,0.00027397,2]
[331699388,1720660240429,-1162.01028716,0.00027397,2]
[331699389,1720660240438,-1162.01028716,0.00027397,2]
[331699390,1720660240448,-1162.01028716,0.00027397,2]
[331699391,1720660240458,-1162.01028716,0.00027397,2]
[331699392,1720660240468,-1162.01028716,0.00027397,2]
[331699394,1720660240478,-1162.01028716,0.00027397,2]
[331699395,1720660240488,-1162.01028716,0.00027397,2]
[331699396,1720660240498,-1162.01028716,0.00027397,2]
[331699397,1720660240508,-1162.01028716,0.00027397,2]
[331699398,1720660240519,-1162.01028716,0.00027397,2]
[331699399,1720660240528,-1237.864903,0.00027397,7]
[331699400,1720660240537,-1237.864903,0.00027397,7]
[331699401,1720660240547,-1162.01028714,0.00027397,2]
[331699402,1720660240555,-1162.01028714,0.00027397,2]
[331699403,1720660240564,-1162.01028714,0.00027397,2]
[331699404,1720660240573,-1162.01028714,0.00027397,2]
[331699405,1720660240583,-151.0,0.00027397,7]
[331699406,1720660240592,-151.0,0.00027397,7]
[331699407,1720660240601,-151.0,0.00027397,7]
[331699408,1720660240610,-151.0,0.00027397,7]
[331699409,1720660240619,-151.0,0.00027397,7]
[331699410,1720660240628,-382.387352,0.00027397,7]
[331699411,1720660240637,-382.387352,0.00027397,7]
[331699412,1720660240647,-379.233077,0.00027397,7]
[331699413,1720660240656,-379.233077,0.00027397,7]
[331699414,1720660240666,-151.0,0.00027397,2]
[331699415,1720660240675,-151.0,0.00027397,7]
[331699416,1720660240684,-151.0,0.00027397,7]
[331699418,1720660240694,-219.256045,0.00027397,7]
[331699419,1720660240703,-156.87525,0.00027397,7]
[331699421,1720660240711,-156.87525,0.00027397,7]
[331699423,1720660240721,-151.0,0.00027397,7]
[331699424,1720660240730,-151.0,0.00027397,7]
[331699425,1720660240739,-151.0,0.00027397,7]
[331699426,1720660240749,-353.337489,0.00027397,7]
[331699427,1720660240757,-353.337489,0.00027397,7]
[331699428,1720660240767,-151.0,0.00027397,7]
[331699430,1720660240776,-158.527152,0.00027397,120]
[331699431,1720660240785,-151.0,0.00027397,7]
[331699433,1720660240794,-151.0,0.00027397,7]
[331699435,1720660240803,-994.197778,0.00027397,7]
[331699437,1720660240813,-994.197778,0.00027397,7]
[331699438,1720660240822,-151.0,0.00027397,7]
[331699439,1720660240832,-204.652162,0.00027397,7]
[331699440,1720660240842,-328.987047,0.00027397,7]
[331699441,1720660240851,-328.987047,0.00027397,7]
[331699442,1720660240860,-43664.05653873,0.000275,2]
[331699444,1720660240870,-150.0,0.00027878,2]
[331699445,1720660240879,-1343.96727085,0.000279,2]
[331699446,1720660240888,-19626.69698405,0.0002799,2]
[331699447,1720660240897,-229.31696231,0.00028,30]
[331699448,1720660240906,-503.64031218,0.00028,2]
[331699449,1720660240916,-160.0,0.00028487,3]
[331699450,1720660240925,-798.78016452,0.000285,2]
[331699451,1720660240935,-101453.5290233,0.0002877,2]
[331699452,1720660240944,-151.0,0.0002877,7]
[331699453,1720660240952,-232.362419,0.0002877,7]
[331699454,1720660240962,-232.362419,0.0002877,7]
[331699455,1720660240972,-151.0,0.0002877,7]
[331699456,1720660240981,-241.571674,0.0002877,7]
[331699457,1720660240995,-151.0,0.0002877,7]
[331699458,1720660241003,-152.480649,0.0002877,7]
[331699459,1720660241013,-151.0,0.0002877,7]
[331699460,1720660241021,-155.34845,0.0002877,7]
[331699461,1720660241030,-151.0,0.0002877,7]
[331699462,1720660241039,-151.0,0.0002877,7]
[331699463,1720660241048,-382.387352,0.0002877,7]
[331699464,1720660241057,-382.387352,0.0002877,7]
[331699465,1720660241066,-379.233077,0.0002877,7]
[331699466,1720660241075,-379.233077,0.0002877,7]
[331699467,1720660241087,-151.0,0.0002877,2]
[331699468,1720660241095,-151.0,0.0002877,7]
[331699469,1720660241104,-156.87525,0.0002877,7]
[331699470,1720660241114,-156.87525,0.0002877,7]
[331699471,1720660241123,-151.0,0.0002877,7]
[331699472,1720660241132,-151.0,0.0002877,7]
[331699473,1720660241141,-151.0,0.0002877,7]
[331699474,1720660241150,-353.337489,0.0002877,7]
[331699475,1720660241160,-353.337489,0.0002877,7]
[331699476,1720660241169,-151.0,0.0002877,7]
[331699477,1720660241178,-151.0,0.0002877,7]
[331699478,1720660241187,-151.0,0.0002877,7]
[331699479,1720660241196,-1237.864903,0.0002877,7]
[331699480,1720660241204,-1237.864903,0.0002877,7]
[331699481,1720660241214,-994.197778,0.0002877,7]
[331699482,1720660241223,-994.197778,0.0002877,7]
[331699483,1720660241231,-151.0,0.0002877,7]
[331699484,1720660241240,-151.0,0.0002877,7]
[331699485,1720660241249,-151.0,0.0002877,7]
[331699486,1720660241258,-328.987047,0.0002877,7]
[331699487,1720660241267,-328.987047,0.0002877,7]
[331699488,1720660241276,-160.0,0.0002881,4]
[331699489,1720660241285,-985.6812886,0.00028856,2]
[331699490,1720660241296,-150.0,0.00028878,2]
[331699491,1720660241304,-1000.0,0.00029,2]
[331699492,1720660241313,-160.0,0.00029133,5]
[331699493,1720660241323,-160.0,0.00029457,6]
[331699494,1720660241334,-26724.5212376,0.00029765,2]
[331699495,1720660241343,-160.0,0.0002978,7]
[331699496,1720660241352,-524.02241824,0.00029793,2]
[331699497,1720660241362,-248.95340007,0.000298,120]
[331699498,1720660241373,-2132.45671248,0.00029803,2]
[331699499,1720660241383,-610.34337005,0.00029813,2]
[331699500,1720660241393,-308.51871438,0.00029861,2]
[331699501,1720660241402,-150.0,0.00029878,2]
[331699502,1720660241412,-170.98764405,0.00029901,2]
[331699503,1720660241421,-158.27709098,0.00029903,2]
[331699504,1720660241431,-240.12803383,0.00029979,2]
[331699505,1720660241439,-4710.72024946,0.00029999,2]
[331699506,1720660241448,-170.47875529,0.0003,4]
[331699507,1720660241458,-1153.41387199,0.0003,2]
[331699508,1720660241467,-8641.17243748,0.0003,5]
[331699509,1720660241476,-11239.65358693,0.0003,4]
[331699510,1720660241485,-309.10360033,0.0003,4]
[331699511,1720660241494,-262.0,0.0003,2]
[331699512,1720660241503,-160.0,0.00030103,8]
[331699513,1720660241512,-160.0,0.00030427,9]
[331699514,1720660241521,-3000.0,0.000306,4]
[331699515,1720660241530,-3000.0,0.0003061,4]
[331699516,1720660241539,-3000.0,0.0003062,4]
[331699517,1720660241548,-3000.0,0.0003063,4]
[331699518,1720660241558,-3000.0,0.0003064,5]
[331699519,1720660241567,-3000.0,0.0003065,5]
[331699520,1720660241576,-3000.0,0.0003066,5]
[331699521,1720660241586,-3000.0,0.0003067,5]
[331699522,1720660241595,-3000.0,0.0003068,5]
[331699523,1720660241604,-3000.0,0.0003069,5]
[331699524,1720660241613,-3000.0,0.000307,5]
[331699525,1720660241622,-3000.0,0.0003071,5]
[331699526,1720660241631,-3000.0,0.0003072,5]
[331699527,1720660241640,-3000.0,0.0003073,5]
[331699528,1720660241649,-3000.0,0.0003074,5]
[331699529,1720660241658,-151.0,0.00030747,4]
[331699530,1720660241667,-3000.0,0.0003075,5]
[331699531,1720660241675,-160.0,0.0003075,10]
[331699532,1720660241685,-290.79810635,0.0003075,5]
[331699533,1720660241693,-3000.0,0.0003076,5]
[331699534,1720660241703,-3000.0,0.0003077,5]
[331699535,1720660241711,-3000.0,0.0003078,5]
[331699536,1720660241720,-3000.0,0.0003079,5]
[331699537,1720660241729,-150.0,0.00030878,2]
[331699538,1720660241739,-270.67867647,0.00031,2]
[331699539,1720660241747,-382.86256596,0.00031091,2]
[331699540,1720660241757,-985.6812886,0.00031215,2]
[331699541,1720660241766,-151.0,0.00031255,4]
[331699542,1720660241775,-1406.0,0.00031335,2]
[331699543,1720660241783,-151.0,0.00031762,4]
[331699544,1720660241792,-161.0,0.0003192,21]
[331699545,1720660241801,-2500.0,0.00032,10]
[331699546,1720660241810,-248.619,0.00032099,2]
[331699547,1720660241820,-151.74,0.00032099,2]
[331699548,1720660241828,-211.681,0.00032099,2]
[331699549,1720660241839,-235.629,0.00032099,2]
[331699550,1720660241848,-150.0,0.00032099,2]
[331699551,1720660241857,-150.244,0.00032099,2]
[331699552,1720660241866,-262.616,0.00032099,2]
[331699553,1720660241875,-151.0,0.0003227,4]
[331699554,1720660241884,-306.31180165,0.00032272,4]
[331699555,1720660241985,-153.0,0.00032685,2]
[331699556,1720660241995,-153.0,0.00032685,2]
[331699557,1720660242003,-153.0,0.00032685,2]
[331699558,1720660242013,-151.0,0.00032777,5]
[331699559,1720660242022,-500.0,0.00032876,7]
[331699560,1720660242031,-502.2419391,0.00032876,2]
[331699561,1720660242040,-299.32475553,0.00032876,7]
[331699562,1720660242049,-500.0,0.00032876,7]
[331699563,1720660242058,-1459.44,0.00032876,4]
[331699564,1720660242067,-500.0,0.00032876,7]
[331699565,1720660242077,-500.0,0.00032876,7]
[331699566,1720660242088,-512.26689138,0.00032876,7]
[331699567,1720660242098,-500.0,0.00032876,7]
[331699568,1720660242108,-500.0,0.00032876,7]
[331699569,1720660242118,-500.0,0.00032876,7]
[331699570,1720660242128,-500.0,0.00032876,7]
[331699571,1720660242137,-632.0588407,0.00032876,7]
[331699572,1720660242147,-500.0,0.00032876,7]
[331699573,1720660242157,-500.0,0.00032876,7]
[331699574,1720660242167,-510.60755786,0.00032876,7]
[331699575,1720660242176,-532.23927992,0.00032876,2]
[331699576,1720660242186,-500.0,0.00032876,7]
[331699577,1720660242195,-500.0,0.00032876,7]
[331699578,1720660242205,-534.0,0.00032876,7]
[331699579,1720660242214,-585.85,0.00032876,7]
[331699580,1720660242223,-500.0,0.00032876,7]
[331699581,1720660242233,-565.73,0.00032876,7]
[331699582,1720660242242,-500.0,0.00032876,7]
[331699583,1720660242251,-500.0,0.00032876,7]
[331699584,1720660242260,-500.0,0.00032876,7]
[331699585,1720660242269,-507.23824294,0.00032876,7]
[331699586,1720660242278,-503.57810842,0.00032876,7]
[331699587,1720660242287,-500.00756614,0.00032876,7]
[331699588,1720660242297,-506.79393341,0.00032876,7]
[331699589,1720660242306,-500.0,0.00032876,7]
[331699590,1720660242316,-500.0,0.00032876,7]
[331699591,1720660242325,-505.75600917,0.00032876,7]
[331699592,1720660242337,-507.49225067,0.00032876,7]
[331699593,1720660242346,-500.0,0.00032876,7]
[331699594,1720660242356,-500.0,0.00032876,7]
[331699595,1720660242364,-500.0,0.00032876,7]
[331699596,1720660242374,-500.0,0.00032876,7]
[331699597,1720660242383,-232.362419,0.00032876,7]
[331699598,1720660242392,-500.0,0.00032876,2]
[331699599,1720660242401,-514.80124812,0.00032876,7]
[331699600,1720660242410,-232.362419,0.00032876,7]
[331699601,1720660242419,-503.17023512,0.00032876,7]
[331699602,1720660242428,-501.04221571,0.00032876,7]
[331699603,1720660242438,-513.16432097,0.00032876,7]
[331699604,1720660242447,-500.0,0.00032876,7]
[331699605,1720660242456,-500.0,0.00032876,7]
[331699606,1720660242465,-500.0,0.00032876,7]
[331699607,1720660242474,-500.0,0.00032876,7]
[331699608,1720660242482,-500.0,0.00032876,7]
[331699609,1720660242491,-500.0,0.00032876,7]
[331699610,1720660242500,-500.0,0.00032876,7]
[331699611,1720660242509,-500.0,0.00032876,7]
[331699612,1720660242518,-377.28202409,0.00032876,7]
[331699613,1720660242527,-500.0,0.00032876,7]
[331699614,1720660242535,-500.0,0.00032876,7]
[331699615,1720660242545,-500.0,0.00032876,7]
[331699616,1720660242554,-500.0,0.00032876,7]
[331699617,1720660242563,-500.0,0.00032876,7]
[331699618,1720660242572,-500.0,0.00032876,7]
[331699619,1720660242581,-171.77965434,0.00032876,7]
[331699620,1720660242591,-500.0,0.00032876,7]
[331699621,1720660242600,-500.0,0.00032876,7]
[331699622,1720660242609,-500.0,0.00032876,7]
[331699623,1720660242618,-500.0,0.00032876,7]
[331699624,1720660242627,-500.0,0.00032876,7]
[331699625,1720660242636,-170.51701345,0.00032876,7]
[331699626,1720660242645,-463.86524635,0.00032876,7]
[331699627,1720660242654,-500.0,0.00032876,7]
[331699628,1720660242663,-248.63993831,0.00032876,7]
[331699629,1720660242672,-453.82344019,0.00032876,7]
[331699630,1720660242680,-500.0,0.00032876,7]
[331699631,1720660242689,-500.0,0.00032876,7]
[331699632,1720660242698,-511.45178003,0.00032876,7]
[331699633,1720660242707,-151.0,0.00032876,7]
[331699634,1720660242717,-500.0,0.00032876,7]
[331699635,1720660242726,-513.41529748,0.00032876,7]
[331699636,1720660242735,-500.0,0.00032876,7]
[331699637,1720660242744,-574.99385574,0.00032876,7]
[331699638,1720660242753,-500.0,0.00032876,7]
[331699639,1720660242763,-512.94377566,0.00032876,7]
[331699640,1720660242772,-500.0,0.00032876,7]
[331699641,1720660242781,-507.90842131,0.00032876,7]
[331699642,1720660242790,-500.0,0.00032876,7]
[331699643,1720660242799,-500.0,0.00032876,7]
[331699644,1720660242807,-290.7403546,0.00032876,7]
[331699645,1720660242816,-500.0,0.00032876,7]
[331699646,1720660242825,-830.65,0.00032876,7]
[331699647,1720660242836,-500.0,0.00032876,7]
[331699648,1720660242845,-527.25979344,0.00032876,7]
[331699649,1720660242855,-915.48,0.00032876,7]
[331699650,1720660242863,-500.0,0.00032876,7]
[331699651,1720660242873,-500.0,0.00032876,7]
[331699652,1720660242882,-505.7015361,0.00032876,7]
[331699653,1720660242891,-632.47655085,0.00032876,7]
[331699654,1720660242900,-220.78763824,0.00032876,7]
[331699655,1720660242909,-500.0,0.00032876,7]
[331699656,1720660242919,-500.0,0.00032876,7]
[331699657,1720660242929,-500.0,0.00032876,7]
[331699658,1720660242938,-500.0,0.00032876,7]
[331699659,1720660242947,-151.0,0.00032876,7]
[331699660,1720660242956,-1626.67,0.00032876,7]
[331699661,1720660242965,-200.0,0.00032876,7]
[331699662,1720660242974,-151.0,0.00032876,7]
[331699663,1720660242983,-344.45024411,0.00032876,7]
[331699664,1720660242992,-500.0,0.00032876,7]
[331699665,1720660243001,-500.0,0.00032876,7]
[331699666,1720660243010,-692.2,0.00032876,7]
[331699667,1720660243019,-500.0,0.00032876,7]
[331699668,1720660243028,-503.78074664,0.00032876,7]
[331699669,1720660243037,-500.0,0.00032876,7]
[331699670,1720660243046,-1455.77,0.00032876,7]
[331699671,1720660243055,-500.0,0.00032876,7]
[331699672,1720660243064,-1500.0,0.00032876,7]
[331699673,1720660243073,-500.0,0.00032876,7]
[331699674,1720660243084,-500.0,0.00032876,7]
[331699675,1720660243093,-500.0,0.00032876,7]
[331699677,1720660243102,-500.0,0.00032876,7]
[331699678,1720660243111,-500.0,0.00032876,7]
[331699679,1720660243120,-500.0,0.00032876,7]
[331699680,1720660243128,-500.0,0.00032876,7]
[331699682,1720660243138,-500.0,0.00032876,7]
[331699684,1720660243147,-500.0,0.00032876,7]
[331699686,1720660243156,-500.0,0.00032876,7]
[331699688,1720660243165,-500.0,0.00032876,7]
[331699690,1720660243174,-454.98687183,0.00032876,7]
[331699692,1720660243183,-500.0,0.00032876,7]
[331699693,1720660243192,-1033.88,0.00032876,7]
[331699695,1720660243201,-500.0,0.00032876,7]
[331699697,1720660243210,-574.0,0.00032876,7]
[331699699,1720660243219,-507.33415285,0.00032876,7]
[331699701,1720660243228,-468.10779224,0.00032876,7]
[331699704,1720660243238,-510.71730112,0.00032876,7]
[331699707,1720660243247,-821.15,0.00032876,7]
[331699709,1720660243257,-616.67,0.00032876,7]
[331699713,1720660243265,-554.16,0.00032876,7]
[331699716,1720660243274,-500.0,0.00032876,7]
[331699720,1720660243283,-500.0,0.00032876,7]
[331699723,1720660243292,-1110.6,0.00032876,7]
[331699725,1720660243302,-541.12,0.00032876,7]
[331699726,1720660243311,-175.46959338,0.00032876,7]
[331699727,1720660243322,-500.0,0.00032876,7]
[331699728,1720660243331,-655.68,0.00032876,7]
[331699729,1720660243342,-600.0,0.00032876,7]
[331699730,1720660243351,-500.0,0.00032876,7]
[331699731,1720660243361,-382.387352,0.00032876,7]
[331699732,1720660243372,-500.0,0.00032876,7]
[331699733,1720660243381,-382.387352,0.00032876,7]
[331699734,1720660243390,-500.0,0.00032876,7]
[331699735,1720660243399,-379.233077,0.00032876,7]
[331699736,1720660243408,-379.233077,0.00032876,7]
[331699737,1720660243417,-151.0,0.00032876,2]
[331699738,1720660243427,-511.07554265,0.00032876,7]
[331699739,1720660243436,-500.0,0.00032876,7]
[331699740,1720660243445,-151.0,0.00032876,7]
[331699743,1720660243454,-613.82163791,0.00032876,7]
[331699744,1720660243464,-500.0,0.00032876,7]
[331699745,1720660243473,-500.0,0.00032876,7]
[331699746,1720660243482,-500.0,0.00032876,7]
[331699747,1720660243491,-500.0,0.00032876,7]
[331699748,1720660243500,-500.0,0.00032876,7]
[331699749,1720660243509,-500.0,0.00032876,7]
[331699750,1720660243518,-500.0,0.00032876,7]
[331699752,1720660243527,-500.0,0.00032876,7]
[331699754,1720660243536,-500.0,0.00032876,7]
[331699755,1720660243545,-500.0,0.00032876,7]
[331699757,1720660243556,-500.0,0.00032876,7]
[331699759,1720660243564,-500.0,0.00032876,7]
[331699761,1720660243573,-500.0,0.00032876,7]
[331699763,1720660243582,-500.0,0.00032876,7]
[331699764,1720660243593,-500.0,0.00032876,7]
[331699765,1720660243602,-500.0,0.00032876,7]
[331699766,1720660243613,-500.0,0.00032876,7]
[331699767,1720660243621,-500.0,0.00032876,7]
[331699768,1720660243630,-500.0,0.00032876,7]
[331699770,1720660243639,-500.0,0.00032876,7]
[331699771,1720660243648,-500.0,0.00032876,7]
[331699773,1720660243657,-500.0,0.00032876,7]
[331699775,1720660243666,-500.0,0.00032876,7]
[331699776,1720660243675,-507.74611799,0.00032876,7]
[331699777,1720660243683,-326.22437545,0.00032876,7]
[331699778,1720660243692,-552.6666109,0.00032876,7]
[331699779,1720660243701,-500.0,0.00032876,7]
[331699780,1720660243710,-500.0,0.00032876,7]
[331699781,1720660243719,-500.0,0.00032876,7]
[331699782,1720660243727,-156.87525,0.00032876,7]
[331699783,1720660243736,-156.87525,0.00032876,7]
[331699784,1720660243744,-2860.64,0.00032876,7]
[331699785,1720660243753,-522.51930045,0.00032876,7]
[331699786,1720660243762,-500.0,0.00032876,7]
[331699787,1720660243771,-1577.01,0.00032876,7]
[331699788,1720660243781,-549.53602772,0.00032876,7]
[331699790,1720660243790,-500.0,0.00032876,7]
[331699792,1720660243799,-151.0,0.00032876,7]
[331699793,1720660243808,-500.0,0.00032876,7]
[331699794,1720660243817,-240.15878,0.00032876,7]
[331699795,1720660243826,-151.0,0.00032876,7]
[331699796,1720660243836,-500.0,0.00032876,7]
[331699797,1720660243845,-353.337489,0.00032876,7]
[331699798,1720660243854,-505.1385116,0.00032876,7]
[331699799,1720660243863,-500.0,0.00032876,7]
[331699801,1720660243872,-353.337489,0.00032876,7]
[331699802,1720660243881,-151.0,0.00032876,7]
[331699803,1720660243889,-151.0,0.00032876,7]
[331699804,1720660243898,-500.0,0.00032876,7]
[331699805,1720660243907,-500.0,0.00032876,7]
[331699806,1720660243916,-500.0,0.00032876,7]
[331699807,1720660243925,-500.0,0.00032876,7]
[331699808,1720660243934,-500.0,0.00032876,7]
[331699809,1720660243943,-500.0,0.00032876,7]
[331699810,1720660243953,-1442.42,0.00032876,7]
[331699811,1720660243962,-504.10091099,0.00032876,7]
[331699812,1720660243972,-151.0,0.00032876,7]
[331699813,1720660243981,-1237.864903,0.00032876,7]
[331699814,1720660243991,-1237.864903,0.00032876,7]
[331699815,1720660244000,-679.56,0.00032876,7]
[331699816,1720660244010,-994.197778,0.00032876,7]
[331699817,1720660244019,-994.197778,0.00032876,7]
[331699818,1720660244028,-500.0,0.00032876,7]
[331699819,1720660244037,-151.0,0.00032876,7]
[331699820,1720660244046,-2702.66,0.00032876,7]
[331699821,1720660244056,-500.0,0.00032876,7]
[331699822,1720660244065,-500.0,0.00032876,7]
[331699823,1720660244074,-207.382923,0.00032876,7]
[331699824,1720660244085,-500.0,0.00032876,7]
[331699825,1720660244095,-6636.31,0.00032876,7]
[331699826,1720660244103,-555.49,0.00032876,7]
[331699827,1720660244113,-500.0,0.00032876,7]
[331699828,1720660244123,-500.0,0.00032876,7]
[331699829,1720660244132,-891.09,0.00032876,7]
[331699830,1720660244141,-500.0,0.00032876,7]
[331699831,1720660244151,-500.0,0.00032876,2]
[331699832,1720660244160,-500.0,0.00032876,7]
[331699833,1720660244170,-477.16209449,0.00032876,7]
[331699834,1720660244180,-151.0,0.00032876,7]
[331699835,1720660244276,-500.0,0.00032876,7]
[331699836,1720660244286,-500.0,0.00032876,7]
[331699837,1720660244295,-500.0,0.00032876,7]
[331699838,1720660244304,-500.0,0.00032876,7]
[331699839,1720660244314,-500.0,0.00032876,7]
[331699840,1720660244323,-500.0,0.00032876,7]
[331699841,1720660244332,-328.987047,0.00032876,7]
[331699842,1720660244343,-500.0,0.00032876,7]